bitfinex-derivatives/quotes_BNBF0:USTF0_20251002
["timestamp","ask_amount","ask_price","bid_price","bid_amount"]
[1759436081498,0.51667678,1076.6,1075.1,0.16159102]
[1759436081798,0.51667678,1076.5,1075.1,0.16159102]
[1759436082098,0.51667678,1076.4,1075.1,0.16159102]
[1759436082295,0.83058374,1076.9,1075.1,0.16159102]
[1759436082499,0.51658627,1076.8,1075.1,0.16159102]
[1759436082700,0.51658627,1076.7,1075.1,0.16159102]
[1759436082900,0.51658627,1076.6,1075.1,0.16159102]
[1759436083099,0.51658627,1076.5,1075.1,0.16159102]
[1759436083298,0.51658627,1076.4,1075.1,0.16159102]
[1759436083496,0.83058374,1076.9,1075.1,0.16159102]
[1759436083696,0.51657482,1076.8,1075.1,0.16159102]
[1759436083901,0.51657482,1076.7,1075.1,0.16159102]
[1759436084099,0.51657482,1076.6,1075.1,0.16159102]
[1759436084404,0.51657482,1076.5,1075.1,0.16159102]
[1759436084604,0.83058374,1077.1,1075.1,0.16159102]
[1759436084801,0.51656301,1077.0,1075.1,0.16159102]
[1759436085001,0.51656301,1076.9,1075.1,0.16159102]
[1759436085200,0.51656301,1076.8,1075.1,0.16159102]
[1759436085404,0.51656301,1076.7,1075.1,0.16159102]
[1759436085605,0.51656301,1076.6,1075.1,0.16159102]
[1759436085901,0.51656301,1076.5,1075.1,0.16159102]
[1759436086105,0.83058374,1077.1,1075.1,0.16159102]
[1759436086401,0.52014166,1077.0,1075.1,0.16159102]
[1759436086601,0.52014166,1076.9,1075.1,0.16159102]
[1759436086803,0.52014166,1076.8,1075.1,0.16159102]
[1759436087104,0.52014166,1076.7,1075.1,0.16159102]
[1759436087300,0.52014166,1076.6,1075.1,0.16159102]
[1759436087502,0.52014166,1076.5,1075.1,0.16159102]
[1759436087704,0.83058374,1077.1,1075.1,0.16159102]
[1759436087901,0.52018688,1077.0,1075.1,0.16159102]
[1759436088106,0.52018688,1076.9,1075.1,0.16159102]
[1759436088303,0.52018688,1076.8,1075.1,0.16159102]
[1759436088603,0.52018688,1076.7,1075.1,0.16159102]
[1759436088802,0.52018688,1076.6,1075.1,0.16159102]
[1759436089006,0.52018688,1076.5,1075.1,0.16159102]
[1759436089205,0.52018688,1076.4,1075.1,0.16159102]
[1759436089506,0.83058374,1077.3,1075.1,0.16159102]
[1759436089701,0.52025818,1077.2,1075.1,0.16159102]
[1759436089903,0.52025818,1077.1,1075.1,0.16159102]
[1759436090205,0.52025818,1077.0,1075.1,0.16159102]
[1759436090405,0.52025818,1076.9,1075.1,0.16159102]
[1759436090603,0.52025818,1076.8,1075.1,0.16159102]
[1759436090802,0.52025818,1076.7,1075.1,0.16159102]
[1759436091002,0.52025818,1076.6,1075.1,0.16159102]
[1759436091206,0.52025818,1076.5,1075.1,0.16159102]
[1759436091403,0.52025818,1076.4,1075.1,0.16159102]
[1759436091602,0.83058374,1077.2,1075.1,0.16159102]
[1759436091806,0.520307,1077.1,1075.1,0.16159102]
[1759436092003,0.520307,1077.0,1075.1,0.16159102]
[1759436092203,0.520307,1076.9,1075.1,0.16159102]
[1759436092403,0.520307,1076.8,1075.1,0.16159102]
[1759436092608,0.520307,1076.7,1075.1,0.16159102]
[1759436092810,0.520307,1076.6,1075.1,0.16159102]
[1759436093009,0.520307,1076.5,1075.1,0.16159102]
[1759436093210,0.520307,1076.4,1075.1,0.16159102]
[1759436093505,0.52036796,1076.3,1075.1,0.16159102]
[1759436093709,0.83058374,1076.9,1075.1,0.16159102]
[1759436094005,0.52037017,1076.8,1075.1,0.16159102]
[1759436094204,0.52037017,1076.7,1075.1,0.16159102]
[1759436094409,0.52037017,1076.6,1075.1,0.16159102]
[1759436094706,0.52037017,1076.5,1075.1,0.16159102]
[1759436094906,0.52037017,1076.4,1075.1,0.16159102]
[1759436095107,0.52037017,1076.3,1075.1,0.16159102]
[1759436095304,0.52037017,1076.2,1075.1,0.16159102]
[1759436095510,0.83058374,1076.9,1075.1,0.16159102]
[1759436095707,0.52035794,1076.8,1075.1,0.16159102]
[1759436095911,0.52035794,1076.7,1075.1,0.16159102]
[1759436096109,0.52035794,1076.6,1075.1,0.16159102]
[1759436096411,0.52035794,1076.5,1075.1,0.16159102]
[1759436096609,0.52035794,1076.4,1075.1,0.16159102]
[1759436096814,0.52035794,1076.3,1075.1,0.16159102]
[1759436097011,0.52035794,1076.2,1075.1,0.16159102]
[1759436097214,0.83058374,1076.9,1075.1,0.16159102]
[1759436097411,0.52038536,1076.8,1075.1,0.16159102]
[1759436097616,0.52038536,1076.7,1075.1,0.16159102]
[1759436097812,0.52038536,1076.6,1075.1,0.16159102]
[1759436098114,0.52038536,1076.5,1075.1,0.16159102]
[1759436098311,0.52038536,1076.4,1075.1,0.16159102]
[1759436098511,0.52038536,1076.3,1075.1,0.16159102]
[1759436098713,0.52038536,1076.2,1075.1,0.16159102]
[1759436098917,0.83058374,1076.9,1075.1,0.16159102]
[1759436099113,0.52040345,1076.8,1075.1,0.16159102]
[1759436099317,0.52040345,1076.7,1075.1,0.16159102]
[1759436099616,0.52040345,1076.6,1075.1,0.16159102]
[1759436099917,0.52040345,1076.5,1075.1,0.16159102]
[1759436100215,0.52040345,1076.4,1075.1,0.16159102]
[1759436100516,0.52040345,1076.3,1075.1,0.16159102]
[1759436100717,0.52040345,1076.2,1075.1,0.16159102]
[1759436100920,0.83058374,1076.9,1075.1,0.16159102]
[1759436101119,0.52039822,1076.8,1075.1,0.16159102]
[1759436101419,0.52039822,1076.7,1075.1,0.16159102]
[1759436101618,0.52039822,1076.6,1075.1,0.16159102]
[1759436101819,0.52039822,1076.5,1075.1,0.16159102]
[1759436102014,0.52039822,1076.4,1075.1,0.16159102]
[1759436102219,0.52039822,1076.3,1075.1,0.16159102]
[1759436102516,0.52039822,1076.2,1075.1,0.16159102]
[1759436102715,0.52039822,1076.1,1075.1,0.16159102]
[1759436102915,0.83058374,1076.8,1075.1,0.16159102]
[1759436103117,0.5205165,1076.7,1075.1,0.16159102]
[1759436103418,0.5205165,1076.6,1075.1,0.16159102]
[1759436103616,0.5205165,1076.5,1075.1,0.16159102]
[1759436103819,0.5205165,1076.4,1075.1,0.16159102]
[1759436104016,0.5205165,1076.3,1075.1,0.16159102]
[1759436104216,0.5205165,1076.2,1075.1,0.16159102]
[1759436104418,0.5205165,1076.1,1075.1,0.16159102]
[1759436104618,0.83058374,1076.8,1075.1,0.16159102]
[1759436104821,0.52057201,1076.7,1075.1,0.16159102]
[1759436105023,0.52057201,1076.6,1075.1,0.16159102]
[1759436105219,0.52057201,1076.5,1075.1,0.16159102]
[1759436105523,0.52057201,1076.4,1075.1,0.16159102]
[1759436105722,0.52057201,1076.3,1075.1,0.16159102]
[1759436105920,0.52057201,1076.2,1075.1,0.16159102]
[1759436106121,0.52057201,1076.1,1075.1,0.16159102]
[1759436106320,0.52057201,1076.0,1075.1,0.16159102]
[1759436106521,0.83058374,1076.7,1075.1,0.16159102]
[1759436106724,0.52075207,1076.6,1075.1,0.16159102]
[1759436107019,1.35133581,1076.5,1075.1,0.16159102]
[1759436107224,0.83058374,1076.3,1075.1,0.16159102]
[1759436107525,0.52075207,1076.2,1075.1,0.16159102]
[1759436107719,0.83058374,1076.3,1075.1,0.16159102]
[1759436107720,0.52075207,1076.1,1075.1,0.16159102]
[1759436107920,0.52075207,1076.0,1075.1,0.16159102]
[1759436108124,0.52075207,1075.9,1075.1,0.16159102]
[1759436108321,0.52075207,1075.8,1075.1,0.16159102]
[1759436108621,1.143,1076.3,1075.1,0.16159102]
[1759436108826,0.52078321,1076.2,1075.1,0.16159102]
[1759436109024,0.52078321,1076.1,1075.1,0.16159102]
[1759436109221,0.52078321,1076.0,1075.1,0.16159102]
[1759436109425,0.52078321,1075.9,1075.1,0.16159102]
[1759436109624,0.52078321,1075.8,1075.1,0.16159102]
[1759436109924,1.143,1076.3,1075.1,0.16159102]
[1759436110128,0.52080008,1076.2,1075.1,0.16159102]
[1759436110321,0.52080008,1076.1,1075.1,0.16159102]
[1759436110523,0.52080008,1076.0,1075.1,0.16159102]
[1759436110727,0.52080008,1075.9,1075.1,0.16159102]
[1759436110924,0.52080008,1075.8,1075.1,0.16159102]
[1759436111225,1.143,1076.3,1075.1,0.16159102]
[1759436111425,0.52092008,1076.2,1075.1,0.16159102]
[1759436111725,0.52092008,1076.1,1075.1,0.16159102]
[1759436112023,0.52092008,1076.0,1075.1,0.16159102]
[1759436112328,0.52092008,1075.9,1075.1,0.16159102]
[1759436112528,0.52092008,1075.8,1075.1,0.16159102]
[1759436112726,1.143,1076.3,1075.1,0.16159102]
[1759436112927,0.52094687,1076.2,1075.1,0.16159102]
[1759436113125,0.52094687,1076.1,1075.1,0.16159102]
[1759436113325,0.52094687,1076.0,1075.1,0.16159102]
[1759436113524,0.52094687,1075.9,1075.1,0.16159102]
[1759436113724,0.52094687,1075.8,1075.1,0.16159102]
[1759436113924,1.143,1076.3,1075.1,0.16159102]
[1759436114129,0.52094569,1076.2,1075.1,0.16159102]
[1759436114328,0.52094569,1076.1,1075.1,0.16159102]
[1759436114528,0.52094569,1076.0,1075.1,0.16159102]
[1759436114728,0.52094569,1075.9,1075.1,0.16159102]
[1759436114927,0.52094569,1075.8,1075.1,0.16159102]
[1759436115128,1.143,1076.3,1075.1,0.16159102]
[1759436115425,0.52089827,1076.2,1075.1,0.16159102]
[1759436115629,0.52089827,1076.1,1075.1,0.16159102]
[1759436115826,0.52089827,1076.0,1075.1,0.16159102]
[1759436116126,0.52089827,1075.9,1075.1,0.16159102]
[1759436116426,0.52089827,1075.8,1075.1,0.16159102]
[1759436116629,0.52089827,1075.7,1075.1,0.16159102]
[1759436116925,1.143,1076.3,1075.1,0.16159102]
[1759436117129,0.52422548,1076.2,1075.1,0.16159102]
[1759436117430,0.52422548,1076.1,1075.1,0.16159102]
[1759436117725,0.52422548,1076.0,1075.1,0.16159102]
[1759436117930,0.52422548,1075.9,1075.1,0.16159102]
[1759436118126,0.52422548,1075.8,1075.1,0.16159102]
[1759436118326,0.52422548,1075.7,1075.1,0.16159102]
[1759436118530,1.97358374,1076.3,1075.1,0.16159102]
[1759436118531,0.52422548,1075.6,1075.1,0.16159102]
[1759436118730,1.443,1076.2,1075.1,0.16159102]
[1759436118926,0.5240949,1076.1,1075.1,0.16159102]
[1759436119130,0.5240949,1076.0,1075.1,0.16159102]
[1759436119331,0.5240949,1075.9,1075.1,0.16159102]
[1759436119531,0.5240949,1075.8,1075.1,0.16159102]
[1759436119826,0.5240949,1075.7,1075.1,0.16159102]
[1759436120029,0.5240949,1075.6,1075.1,0.16159102]
[1759436120228,1.443,1076.2,1075.1,0.16159102]
[1759436120427,0.52397346,1076.1,1075.1,0.16159102]
[1759436120629,0.52397346,1076.0,1075.1,0.16159102]
[1759436120828,0.52397346,1075.9,1075.1,0.16159102]
[1759436121131,0.52397346,1075.8,1075.1,0.16159102]
[1759436121328,0.52397346,1075.7,1075.1,0.16159102]
[1759436121528,0.52397346,1075.6,1075.1,0.16159102]
[1759436121729,1.443,1076.2,1075.1,0.16159102]
[1759436121929,0.52399326,1076.1,1075.1,0.16159102]
[1759436122132,0.52399326,1076.0,1075.1,0.16159102]
[1759436122330,0.52399326,1075.9,1075.1,0.16159102]
[1759436122531,0.52399326,1075.8,1075.1,0.16159102]
[1759436122730,0.52399326,1075.7,1075.1,0.16159102]
[1759436122934,0.52399326,1075.6,1075.1,0.16159102]
[1759436123132,1.443,1076.2,1075.1,0.16159102]
[1759436123428,0.5239982,1076.1,1075.1,0.16159102]
[1759436123632,0.5239982,1076.0,1075.1,0.16159102]
[1759436123833,0.5239982,1075.9,1075.1,0.16159102]
[1759436124033,0.5239982,1075.8,1075.1,0.16159102]
[1759436124232,0.5239982,1075.7,1075.1,0.16159102]
[1759436124532,0.5239982,1075.6,1075.1,0.16159102]
[1759436124732,1.443,1076.2,1075.1,0.16159102]
[1759436124933,0.52402081,1076.1,1075.1,0.16159102]
[1759436125135,0.52402081,1076.0,1075.1,0.16159102]
[1759436125436,0.52402081,1075.9,1075.1,0.16159102]
[1759436125637,0.52402081,1075.8,1075.1,0.16159102]
[1759436125836,0.52402081,1075.7,1075.1,0.16159102]
[1759436126133,0.52402081,1075.6,1075.1,0.16159102]
[1759436126338,1.443,1076.2,1075.1,0.16159102]
[1759436126633,0.52404274,1076.1,1075.1,0.16159102]
[1759436126835,0.52404274,1076.0,1075.1,0.16159102]
[1759436127039,0.52404274,1075.9,1075.1,0.16159102]
[1759436127236,0.52404274,1075.8,1075.1,0.16159102]
[1759436127437,0.52404274,1075.7,1075.1,0.16159102]
[1759436127634,0.52404274,1075.6,1075.1,0.16159102]
[1759436127938,1.443,1076.2,1075.1,0.16159102]
[1759436128135,0.52397929,1076.1,1075.1,0.16159102]
[1759436128340,0.52397929,1076.0,1075.1,0.16159102]
[1759436128635,0.52397929,1075.9,1075.1,0.16159102]
[1759436128833,0.52397929,1075.8,1075.1,0.16159102]
[1759436129038,0.52397929,1075.7,1075.1,0.16159102]
[1759436129239,0.52397929,1075.6,1075.1,0.16159102]
[1759436129539,1.143,1076.3,1075.1,0.16159102]
[1759436129834,0.52391144,1076.2,1075.1,0.16159102]
[1759436130036,0.52391144,1076.1,1075.1,0.16159102]
[1759436130234,0.52391144,1076.0,1075.1,0.16159102]
[1759436130435,0.52391144,1075.9,1075.1,0.16159102]
[1759436130635,1.143,1076.3,1075.1,0.16159102]
[1759436130636,0.52391144,1075.8,1075.1,0.16159102]
[1759436130835,0.52391144,1075.7,1075.1,0.16159102]
[1759436131039,0.52391144,1075.6,1075.1,0.16159102]
[1759436131239,1.143,1076.3,1075.1,0.16159102]
[1759436131440,0.52386958,1076.2,1075.1,0.16159102]
[1759436131636,0.52386958,1076.1,1075.1,0.16159102]
[1759436131840,0.52386958,1076.0,1075.1,0.16159102]
[1759436132040,0.52386958,1075.9,1075.1,0.16159102]
[1759436132239,0.52386958,1075.8,1075.1,0.16159102]
[1759436132535,0.52386958,1075.7,1075.1,0.16159102]
[1759436132740,0.52386958,1075.6,1075.1,0.16159102]
[1759436133040,1.143,1076.3,1075.1,0.16159102]
[1759436133241,0.5238426,1076.2,1075.1,0.16159102]
[1759436133441,0.5238426,1076.1,1075.1,0.16159102]
[1759436133639,0.5238426,1076.0,1075.1,0.16159102]
[1759436133837,0.5238426,1075.9,1075.1,0.16159102]
[1759436134042,0.5238426,1075.8,1075.1,0.16159102]
[1759436134342,0.5238426,1075.7,1075.1,0.16159102]
[1759436134641,0.5238426,1075.6,1075.1,0.16159102]
[1759436134842,0.83058374,1076.2,1075.1,0.16159102]
[1759436135042,0.52384641,1076.1,1075.1,0.16159102]
[1759436135242,0.52384641,1076.0,1075.1,0.16159102]
[1759436135442,0.52384641,1075.9,1075.1,0.16159102]
[1759436135639,0.52384641,1075.8,1075.1,0.16159102]
[1759436135940,0.52384641,1075.7,1075.1,0.16159102]
[1759436136144,0.52384641,1075.6,1075.1,0.16159102]
[1759436136446,0.83058374,1076.2,1075.1,0.16159102]
[1759436136740,0.52386457,1076.1,1075.1,0.16159102]
[1759436136940,1.35444831,1076.0,1075.1,0.16159102]
[1759436137140,0.52386457,1075.9,1075.1,0.16159102]
[1759436137439,0.52386457,1075.8,1075.1,0.16159102]
[1759436137641,0.52386457,1075.7,1075.1,0.16159102]
[1759436137841,0.52386457,1075.6,1075.1,0.16159102]
[1759436138043,0.52386457,1075.5,1075.1,0.16159102]
[1759436138242,0.83058374,1076.0,1075.1,0.16159102]
[1759436138444,0.52387902,1075.9,1075.1,0.16159102]
[1759436138646,0.52387902,1075.8,1075.1,0.16159102]
[1759436138847,0.83058374,1076.0,1075.1,0.16159102]
[1759436138848,0.52387902,1075.7,1075.1,0.16159102]
[1759436139048,0.52387902,1075.6,1075.1,0.16159102]
[1759436139249,0.52387902,1075.5,1075.1,0.16159102]
[1759436139445,0.52387902,1075.4,1075.1,0.16159102]
[1759436139650,0.52387902,1075.3,1075.1,0.16159102]
[1759436139845,0.83058374,1076.1,1075.1,0.16159102]
[1759436140046,0.52388932,1076.0,1075.1,0.16159102]
[1759436140345,0.52388932,1075.9,1075.1,0.16159102]
[1759436140544,0.52388932,1075.8,1075.1,0.16159102]
[1759436140747,0.52388932,1075.7,1075.1,0.16159102]
[1759436140947,0.52388932,1075.6,1075.1,0.16159102]
[1759436141148,0.52388932,1075.5,1075.1,0.16159102]
[1759436141348,0.52388932,1075.4,1075.1,0.16159102]
[1759436141547,0.52388932,1075.3,1075.1,0.16159102]
[1759436141749,0.83058374,1076.2,1075.1,0.16159102]
[1759436141952,0.52375894,1076.1,1075.1,0.16159102]
[1759436142247,0.52375894,1076.0,1075.1,0.16159102]
[1759436142451,0.52375894,1075.9,1075.1,0.16159102]
[1759436142649,0.52375894,1075.8,1075.1,0.16159102]
[1759436142848,0.52375894,1075.7,1075.1,0.16159102]
[1759436143052,0.52375894,1075.6,1075.1,0.16159102]
[1759436143253,0.52375894,1075.5,1075.1,0.16159102]
[1759436143453,0.52375894,1075.4,1075.1,0.16159102]
[1759436143654,0.52375894,1075.3,1075.1,0.16159102]
[1759436143950,0.83058374,1076.2,1075.1,0.16159102]
[1759436144150,0.52368528,1076.1,1075.1,0.16159102]
[1759436144354,0.52368528,1076.0,1075.1,0.16159102]
[1759436144650,0.52368528,1075.9,1075.1,0.16159102]
[1759436144852,0.52368528,1075.8,1075.1,0.16159102]
[1759436145050,0.52368528,1075.7,1075.1,0.16159102]
[1759436145249,0.52368528,1075.6,1075.1,0.16159102]
[1759436145449,0.52368528,1075.5,1075.1,0.16159102]
[1759436145650,0.52368528,1075.4,1075.1,0.16159102]
[1759436145848,0.52368528,1075.3,1075.1,0.16159102]
[1759436146050,0.83058374,1075.9,1075.1,0.16159102]
[1759436146254,0.5237203,1075.8,1075.1,0.16159102]
[1759436146452,0.5237203,1075.7,1075.1,0.16159102]
[1759436146653,0.5237203,1075.6,1075.1,0.16159102]
[1759436146852,0.5237203,1075.5,1075.1,0.16159102]
[1759436147053,0.5237203,1075.4,1075.1,0.16159102]
[1759436147252,0.5237203,1075.3,1075.1,0.16159102]
[1759436147456,0.83058374,1075.9,1075.1,0.16159102]
[1759436147656,0.52402504,1075.8,1075.1,0.16159102]
[1759436147853,0.52402504,1075.7,1075.1,0.16159102]
[1759436148054,0.52402504,1075.6,1075.1,0.16159102]
[1759436148256,0.52402504,1075.5,1075.1,0.16159102]
[1759436148454,0.52402504,1075.4,1075.1,0.16159102]
[1759436148657,0.52402504,1075.3,1075.1,0.16159102]
[1759436148858,0.83058374,1075.9,1075.1,0.16159102]
[1759436149158,0.52411618,1075.8,1073.1,1.22857739]
[1759436149354,0.52411618,1075.7,1074.9,0.1618345]
[1759436149556,0.52411618,1075.6,1074.9,0.1618345]
[1759436149859,0.52411618,1075.5,1074.9,0.16185708]
[1759436150057,0.52411618,1075.4,1074.9,0.16185708]
[1759436150358,0.52411618,1075.3,1074.9,0.16185708]
[1759436150654,0.52411618,1075.2,1074.9,0.16185708]
[1759436150859,0.83058374,1076.0,1074.9,0.16185708]
[1759436151057,0.52434603,1075.9,1074.9,0.16185708]
[1759436151257,0.52434603,1075.8,1074.9,0.16185708]
[1759436151455,0.52434603,1075.7,1074.9,0.16185708]
[1759436151755,0.52434603,1075.6,1074.9,0.16185708]
[1759436151958,0.52434603,1075.5,1074.9,0.16185708]
[1759436152259,0.52434603,1075.4,1074.9,0.16185708]
[1759436152460,0.52434603,1075.3,1074.9,0.16185708]
[1759436152654,0.52434603,1075.2,1074.9,0.16185708]
[1759436152955,0.83058374,1075.9,1074.9,0.16185708]
[1759436153157,0.83058374,1075.7,1074.9,0.16185708]
[1759436153356,0.52449786,1075.6,1074.9,0.16185708]
[1759436153559,0.52449786,1075.5,1074.9,0.16185708]
[1759436153756,0.52449786,1075.4,1074.9,0.16185708]
[1759436153957,0.52449786,1075.3,1074.9,0.16185708]
[1759436154158,0.52449786,1075.2,1074.9,0.16185708]
[1759436154361,0.83058374,1075.7,1074.9,0.16185708]
[1759436154558,0.52466378,1075.6,1074.9,0.16185708]
[1759436154762,0.52466378,1075.5,1074.9,0.16185708]
[1759436154962,0.52466378,1075.4,1074.9,0.16185708]
[1759436155262,0.52466378,1075.3,1074.9,0.16185708]
[1759436155456,0.52466378,1075.2,1074.9,0.16185708]
[1759436155660,0.83058374,1075.7,1074.9,0.16185708]
[1759436155860,0.52473806,1075.6,1074.9,0.16185708]
[1759436156057,0.52473806,1075.5,1074.9,0.16185708]
[1759436156259,0.52473806,1075.4,1074.9,0.16185708]
[1759436156459,0.52473806,1075.3,1074.9,0.16185708]
[1759436156662,0.52473806,1075.2,1074.9,0.16185708]
[1759436156861,0.83058374,1075.7,1074.9,0.16185708]
[1759436157061,0.52483251,1075.6,1074.9,0.16185708]
[1759436157360,0.52483251,1075.5,1074.9,0.16185708]
[1759436157661,0.52483251,1075.4,1074.9,0.16185708]
[1759436157861,0.52483251,1075.3,1074.9,0.16185708]
[1759436158061,0.52483251,1075.2,1074.9,0.16185708]
[1759436158261,0.83058374,1075.7,1074.9,0.16185708]
[1759436158460,0.52502923,1075.6,1074.9,0.16185708]
[1759436158664,0.52502923,1075.5,1074.9,0.16185708]
[1759436158864,0.52502923,1075.4,1074.9,0.16185708]
[1759436159061,0.52502923,1075.3,1074.9,0.16185708]
[1759436159263,0.52502923,1075.2,1074.9,0.16185708]
[1759436159464,0.83058374,1075.8,1074.9,0.16185708]
[1759436159663,0.5251513,1075.7,1074.9,0.16185708]
[1759436159864,0.5251513,1075.6,1074.9,0.16185708]
[1759436160066,0.5251513,1075.5,1074.9,0.16185708]
[1759436160263,0.5251513,1075.4,1074.9,0.16185708]
[1759436160566,0.5251513,1075.3,1074.9,0.16185708]
[1759436160764,0.5251513,1075.2,1074.9,0.16185708]
[1759436160964,0.83058374,1076.0,1074.9,0.16185708]
[1759436161164,0.52527199,1075.9,1074.9,0.16185708]
[1759436161366,0.52527199,1075.8,1074.9,0.16185708]
[1759436161566,0.52527199,1075.7,1074.9,0.16185708]
[1759436161766,0.52527199,1075.6,1074.9,0.16185708]
[1759436161966,0.52527199,1075.5,1074.9,0.16185708]
[1759436162269,0.52527199,1075.4,1074.9,0.16185708]
[1759436162570,0.83058374,1075.9,1074.9,0.16185708]
[1759436162872,0.52538822,1075.8,1074.9,0.16185708]
[1759436163070,0.52538822,1075.7,1074.9,0.16185708]
[1759436163266,0.52538822,1075.6,1074.9,0.16185708]
[1759436163466,0.52538822,1075.5,1074.9,0.16185708]
[1759436163667,0.52538822,1075.4,1074.9,0.16185708]
[1759436163970,0.83058374,1076.0,1074.9,0.16185708]
[1759436164166,0.52551646,1075.9,1074.9,0.16185708]
[1759436164369,0.52551646,1075.8,1074.9,0.16185708]
[1759436164569,0.52551646,1075.7,1074.9,0.16185708]
[1759436164767,0.83058374,1076.0,1074.9,0.16185708]
[1759436164768,0.52551646,1075.6,1074.9,0.16185708]
[1759436164966,0.52551646,1075.5,1074.9,0.16185708]
[1759436165167,0.52551646,1075.4,1074.9,0.16185708]
[1759436165366,0.83058374,1076.0,1074.9,0.16185708]
[1759436165569,0.52588078,1075.9,1074.9,0.16185708]
[1759436165771,0.52588078,1075.8,1074.9,0.16185708]
[1759436165969,0.52588078,1075.7,1074.9,0.16185708]
[1759436166171,0.52588078,1075.6,1074.9,0.16185708]
[1759436166370,0.83058374,1076.2,1074.9,0.16185708]
[1759436166572,0.52597563,1076.1,1074.9,0.16185708]
[1759436166770,2.90704309,1077.6,1074.9,0.16185708]
[1759436166771,0.52597563,1076.0,1074.9,0.16185708]
[1759436166970,0.52597563,1075.9,1074.9,0.16185708]
[1759436167171,0.52597563,1075.8,1074.9,0.16185708]
[1759436167369,0.52597563,1075.7,1074.9,0.16185708]
[1759436167570,0.83058374,1076.2,1074.9,0.16185708]
[1759436167773,0.52600932,1076.1,1074.9,0.16185708]
[1759436168069,0.52600932,1076.0,1074.9,0.16185708]
[1759436168273,0.52600932,1075.9,1074.9,0.16185708]
[1759436168475,0.52600932,1075.8,1074.9,0.16185708]
[1759436168674,0.52600932,1075.7,1074.9,0.16185708]
[1759436168873,0.83058374,1076.3,1074.9,0.16185708]
[1759436169176,0.52604431,1076.2,1074.9,0.16185708]
[1759436169377,0.52604431,1076.1,1074.9,0.16185708]
[1759436169678,0.52604431,1076.0,1074.9,0.16185708]
[1759436169876,0.52604431,1075.9,1074.9,0.16185708]
[1759436170075,0.52604431,1075.8,1074.9,0.16185708]
[1759436170273,0.52604431,1075.7,1074.9,0.16185708]
[1759436170476,0.52604431,1075.6,1074.9,0.16185708]
[1759436170775,0.83058374,1076.3,1074.9,0.16185708]
[1759436170976,2.07645935,1077.4,1074.9,0.16185708]
[1759436170977,0.83058374,1075.9,1074.9,0.16185708]
[1759436171179,1.35674726,1075.8,1074.9,0.16185708]
[1759436171478,0.52616352,1075.7,1074.9,0.16185708]
[1759436171678,0.52616352,1075.6,1074.9,0.16185708]
[1759436171874,0.52616352,1075.5,1074.9,0.16185708]
[1759436172075,0.52616352,1075.4,1074.9,0.16185708]
[1759436172378,0.52616352,1075.3,1074.9,0.16185708]
[1759436172578,0.52616352,1075.2,1074.9,0.16185708]
[1759436172777,0.83058374,1075.9,1074.9,0.16185708]
[1759436172978,1.35699857,1075.8,1074.9,0.16185708]
[1759436173179,0.52641483,1075.7,1074.9,0.16185708]
[1759436173377,0.52641483,1075.6,1074.9,0.16185708]
[1759436173580,0.52641483,1075.5,1074.9,0.16185708]
[1759436173780,0.52641483,1075.4,1074.9,0.16185708]
[1759436173981,0.52641483,1075.3,1074.9,0.16185708]
[1759436174177,0.52641483,1075.2,1074.9,0.16185708]
[1759436174478,0.52641483,1075.1,1074.9,0.16185708]
[1759436174679,0.83058374,1075.8,1074.9,0.16185708]
[1759436174877,1.35706706,1075.7,1074.9,0.16185708]
[1759436175077,0.52648332,1075.6,1074.9,0.16185708]
[1759436175283,0.52648332,1075.5,1074.9,0.16185708]
[1759436175478,0.83058374,1075.7,1074.9,0.16185708]
[1759436175479,0.52648332,1075.4,1074.9,0.16185708]
[1759436175679,0.52648332,1075.3,1074.9,0.16185708]
[1759436175878,0.52648332,1075.2,1074.9,0.16185708]
[1759436176179,0.52648332,1075.1,1074.9,0.16185708]
[1759436176378,0.83058374,1075.7,1074.9,0.16185708]
[1759436176578,0.52539409,1075.6,1074.9,0.16185708]
[1759436176782,0.52539409,1075.5,1074.9,0.16185708]
[1759436176983,0.52539409,1075.4,1074.9,0.16185708]
[1759436177179,0.52539409,1075.3,1074.9,0.16185708]
[1759436177480,0.52539409,1075.2,1074.9,0.16185708]
[1759436177778,0.83058374,1075.7,1074.9,0.16185708]
[1759436177983,0.52539351,1075.6,1074.9,0.16185708]
[1759436178181,0.52539351,1075.5,1074.9,0.16185708]
[1759436178379,0.52539351,1075.4,1074.9,0.16185708]
[1759436178582,0.52539351,1075.3,1074.9,0.16185708]
[1759436178881,0.52539351,1075.2,1074.9,0.16185708]
[1759436179082,0.83058374,1075.7,1074.9,0.16185708]
[1759436179282,0.52543367,1075.6,1074.9,0.16185708]
[1759436179581,0.52543367,1075.5,1074.9,0.16185708]
[1759436179781,0.52543367,1075.4,1074.9,0.16185708]
[1759436180079,0.52543367,1075.3,1074.9,0.16185708]
[1759436180282,0.52543367,1075.2,1074.9,0.16185708]
[1759436180479,0.83058374,1075.8,1074.9,0.16185708]
[1759436180679,0.52545662,1075.7,1074.9,0.16185708]
[1759436180878,0.52545662,1075.6,1074.9,0.16185708]
[1759436181182,0.52545662,1075.5,1074.9,0.16185708]
[1759436181382,0.52545662,1075.4,1074.9,0.16185708]
[1759436181580,0.52545662,1075.3,1074.9,0.16185708]
[1759436181780,0.52545662,1075.2,1074.9,0.16185708]
[1759436181984,0.83058374,1075.8,1074.9,0.16185708]
[1759436182185,0.52546574,1075.7,1074.9,0.16185708]
[1759436182381,0.52546574,1075.6,1074.9,0.16185708]
[1759436182685,0.52546574,1075.5,1074.9,0.16185708]
[1759436182984,0.52546574,1075.4,1074.9,0.16185708]
[1759436183184,0.52546574,1075.3,1074.9,0.16185708]
[1759436183384,0.52546574,1075.2,1074.9,0.16185708]
[1759436183585,0.83058374,1075.8,1074.9,0.16185708]
[1759436183786,1.35612692,1075.7,1074.9,0.16185708]
[1759436183979,0.52554318,1075.6,1074.9,0.16185708]
[1759436184182,0.52554318,1075.5,1074.9,0.16185708]
[1759436184381,0.52555773,1075.4,1074.9,0.16185708]
[1759436184583,0.52555773,1075.3,1074.9,0.16185708]
[1759436184782,0.52555773,1075.2,1074.9,0.16185708]
[1759436184981,0.52555773,1075.1,1074.9,0.16185708]
[1759436185181,0.83058374,1075.7,1074.9,0.16185708]
[1759436185386,0.5255986,1075.6,1074.9,0.16185708]
[1759436185584,0.5255986,1075.5,1074.9,0.16185708]
[1759436185784,0.5255986,1075.4,1074.9,0.16185708]
[1759436185983,0.5255986,1075.3,1074.9,0.16185708]
[1759436186183,0.5255986,1075.2,1074.9,0.16185708]
[1759436186484,0.5255986,1075.1,1074.9,0.16185708]
[1759436186687,0.83058374,1075.7,1074.9,0.16185708]
[1759436186885,0.52561324,1075.6,1074.9,0.16185708]
[1759436187083,0.52561324,1075.5,1074.9,0.16185708]
[1759436187291,0.52561324,1075.4,1074.9,0.16185708]
[1759436187485,0.52561324,1075.3,1074.9,0.16185708]
[1759436187684,0.52561324,1075.2,1074.9,0.16185708]
[1759436187883,0.52561324,1075.1,1074.9,0.16185708]
[1759436188086,0.83058374,1075.6,1074.9,0.16185708]
[1759436188289,0.52565207,1075.5,1074.9,0.16185708]
[1759436188488,0.52565207,1075.4,1074.9,0.16185708]
[1759436188690,0.52565207,1075.3,1074.9,0.16185708]
[1759436188889,0.52565207,1075.2,1074.9,0.16185708]